bitfinex/quotes_SOLUSD_20251128
["timestamp","ask_amount","ask_price","bid_price","bid_amount"]
[1764323001279,12.1044455,141.7,141.65,7.05921451]
[1764323001487,0.7,141.69,141.65,7.05921451]
[1764323001656,0.7,141.69,141.65,24.7083497]
[1764323001863,0.7,141.69,141.65,7.05921451]
[1764323002180,0.28432314,141.67,141.64,7.15991853]
[1764323002359,3.12,141.66,141.64,7.15991853]
[1764323002677,3.82,141.66,141.64,7.15991853]
[1764323002877,0.7,141.65,141.64,7.15991853]
[1764323008993,3.82,141.66,141.64,7.15991853]
[1764323009797,0.14216157,141.63,141.56,0.67]
[1764323010096,8.80994492,141.64,141.56,0.67]
[1764323010097,0.14216157,141.61,141.56,0.67]
[1764323010293,0.14216157,141.61,141.55,7.83455607]
[1764323010581,0.7,141.6,141.55,24.14342007]
[1764323010886,0.7,141.6,141.56,0.67]
[1764323011779,0.7,141.6,141.57,7.06364342]
[1764323012574,10.98461525,141.6,141.57,7.06364342]
[1764323013086,0.7,141.59,141.57,7.06364342]
[1764323013293,3.12,141.58,141.57,7.06364342]
[1764323015162,3.82,141.58,141.57,7.06364342]
[1764323015378,3.12,141.58,141.57,7.06364342]
[1764323015984,3.12,141.58,141.56,7.06414241]
[1764323016191,3.12,141.58,141.56,7.73414241]
[1764323017301,0.7,141.57,141.56,7.06414241]
[1764323017690,3.12,141.58,141.56,7.06414241]
[1764323017691,3.82,141.58,141.56,7.06414241]
[1764323018070,3.12,141.58,141.56,7.06414241]
[1764323018269,3.12,141.58,141.57,0.67]
[1764323019367,3.12,141.58,141.57,24.04250742]
[1764323019573,3.12,141.58,141.57,23.37250742]
[1764323019787,3.12,141.58,141.57,24.04250742]
[1764323019986,3.12,141.58,141.57,23.37250742]
[1764323020180,3.12,141.58,141.57,24.04250742]
[1764323023894,3.12,141.58,141.57,23.37250742]
[1764323024115,3.12,141.58,141.57,7.06364342]
[1764323024602,3.12,141.58,141.57,7.76364342]
[1764323024774,3.12,141.58,141.57,11.11859961]
[1764323025579,3.12,141.58,141.57,7.06364342]
[1764323025783,3.12,141.58,141.57,10.41859961]
[1764323025978,3.77,141.58,141.57,7.06364342]
[1764323026389,3.12,141.58,141.57,10.41859961]
[1764323026591,3.12,141.58,141.57,11.11859961]
[1764323026796,3.12,141.58,141.57,10.41859961]
[1764323027305,3.12,141.58,141.57,7.06364342]
[1764323027489,3.12,141.58,141.57,10.41859961]
[1764323028301,3.77,141.58,141.57,10.41859961]
[1764323029606,3.12,141.58,141.57,11.11859961]
[1764323029783,3.12,141.58,141.57,28.77770817]
[1764323033988,0.65,141.63,141.62,3.35495619]
[1764323034187,3.40432314,141.63,141.62,3.35495619]
[1764323034704,4.05432314,141.63,141.62,3.35495619]
[1764323035406,4.05432314,141.63,141.59,3.35495619]
[1764323035407,9.09426806,141.62,141.59,3.35495619]
[1764323035601,9.09426806,141.62,141.56,17.65974362]
[1764323035602,9.74426806,141.62,141.57,7.06364342]
[1764323035809,0.65,141.61,141.6,3.35495619]
[1764323037911,0.65,141.61,141.59,3.35495619]
[1764323038404,0.65,141.61,141.58,7.06305245]
[1764323038711,0.65,141.61,141.59,3.35495619]
[1764323040107,0.28432314,141.6,141.58,7.06305245]
[1764323040288,3.12,141.59,141.57,3.35495619]
[1764323040485,3.77,141.59,141.57,3.35495619]
[1764323040705,0.65,141.58,141.57,3.35495619]
[1764323041004,0.93432314,141.58,141.56,3.35495619]
[1764323041508,0.93432314,141.58,141.57,3.35495619]
[1764323045894,0.28432314,141.58,141.57,10.41859961]
[1764323046311,3.12,141.59,141.57,10.41859961]
[1764323046514,3.40432314,141.59,141.58,10.4181007]
[1764323047300,3.12,141.59,141.58,11.1181007]
[1764323049624,3.12,141.59,141.58,10.4181007]
[1764323049794,3.12,141.59,141.58,11.1181007]
[1764323050992,3.12,141.59,141.58,7.76314451]
[1764323051206,3.12,141.59,141.58,11.1181007]
[1764323053112,3.12,141.59,141.58,7.76314451]
[1764323053318,3.12,141.59,141.58,11.1181007]
[1764323057228,0.86216157,141.64,141.58,64.09168452]
[1764323057229,3.12,141.62,141.58,64.09168452]
[1764323057425,3.12,141.62,141.61,3.35495619]
[1764323057921,3.12,141.62,141.61,4.06495619]
[1764323059002,3.12,141.62,141.61,11.12660437]
[1764323059701,3.12,141.62,141.61,14.48156056]
[1764323061021,3.12,141.66,141.61,32.13568103]
[1764323061229,3.40432314,141.66,141.65,3.35495619]
[1764323061401,4.12432314,141.66,141.65,3.35495619]
[1764323061607,3.40432314,141.66,141.65,3.35495619]
[1764323062421,3.12,141.66,141.65,3.35495619]
[1764323063318,3.12,141.66,141.65,10.41461026]
[1764323066333,3.12,141.66,141.65,7.05965407]
[1764323066513,3.12,141.66,141.65,10.41461026]
[1764323068905,3.12,141.66,141.65,11.12461026]
[1764323073447,0.72,141.7,141.65,11.12461026]
[1764323073617,3.12,141.69,141.66,0.71]
[1764323073816,3.84,141.69,141.66,0.71]
[1764323074417,3.84,141.69,141.65,24.70878926]
[1764323074418,3.12,141.69,141.65,24.70878926]
[1764323074619,1.00432314,141.68,141.65,24.70878926]
[1764323074832,1.00432314,141.68,141.66,10.4136529]
[1764323075032,0.72,141.67,141.66,10.4136529]
[1764323079952,0.72,141.67,141.65,24.70878926]
[1764323080129,0.72,141.67,141.66,3.35495619]
[1764323080650,0.28432314,141.68,141.66,3.35495619]
[1764323080829,0.97432314,141.68,141.67,3.35495619]
[1764323082954,0.28432314,141.68,141.67,3.35495619]
[1764323083450,0.97432314,141.68,141.67,3.35495619]
[1764323083833,0.97432314,141.68,141.67,10.41361363]
[1764323084560,0.97432314,141.68,141.67,9.20306969]
[1764323084764,0.97432314,141.68,141.67,2.14441225]
[1764323084956,0.97432314,141.68,141.67,9.20306969]
[1764323090458,0.97432314,141.68,141.66,7.05915572]
[1764323090657,0.97432314,141.68,141.67,2.14441225]
[1764323091459,0.28432314,141.68,141.67,9.20306969]
[1764323092058,0.28432314,141.68,141.67,9.92306969]
[1764323092558,0.28432314,141.68,141.67,9.20306969]
[1764323094364,0.97432314,141.68,141.67,9.20306969]
[1764323094663,0.28432314,141.68,141.67,9.20306969]
[1764323094864,0.97432314,141.68,141.67,9.20306969]
[1764323095162,0.28432314,141.68,141.67,9.20306969]
[1764323095656,3.81,141.69,141.67,9.20306969]
[1764323095657,3.12,141.69,141.67,12.06748194]
[1764323095867,3.12,141.69,141.68,5.0088245]
[1764323096571,3.12,141.69,141.68,12.06698373]
[1764323104069,70.0,141.74,141.68,29.71238181]
[1764323104256,70.97432314,141.74,141.73,2.14441225]
[1764323104450,0.97432314,141.73,141.71,7.05666502]
[1764323104763,73.12,141.74,141.72,2.14441225]
[1764323104960,73.81,141.74,141.73,2.14441225]
[1764323106766,73.81,141.74,141.73,9.20008148]
[1764323109467,73.81,141.74,141.72,7.05608366]
[1764323109666,73.40432314,141.74,141.73,2.14441225]
[1764323110407,74.09432314,141.74,141.73,2.14441225]
[1764323112352,74.09432314,141.74,141.73,9.20008148]
[1764323112578,74.08432314,141.74,141.73,2.14441225]
[1764323114770,73.12,141.74,141.73,9.86008148]
[1764323115176,73.12,141.74,141.73,7.71566923]
[1764323115380,73.12,141.74,141.73,9.20008148]
[1764323116381,74.08432314,141.74,141.72,7.05615275]
[1764323116578,0.68,141.73,141.72,7.05615275]
[1764323117085,0.68,141.73,141.72,9.200565]
[1764323117379,74.08432314,141.74,141.72,9.200565]
[1764323118584,73.8,141.74,141.72,9.200565]
[1764323120163,73.12,141.74,141.73,2.14441225]
[1764323122479,73.12,141.74,141.73,9.20008148]
[1764323122680,73.12,141.74,141.73,9.90008148]
[1764323125503,31.01304383,141.74,141.73,28.35335773]
[1764323125792,3.12,141.76,141.75,16.308864]
[1764323125972,3.12,141.76,141.75,20.5976885]
[1764323126182,3.12,141.76,141.75,21.2976885]
[1764323126577,3.12,141.76,141.75,28.35236222]
[1764323128386,3.12,141.76,141.75,26.20794997]
[1764323138584,0.2,141.78,141.75,45.98904652]
[1764323138788,0.2,141.78,141.77,2.14441225]
[1764323139176,0.2,141.78,141.77,2.84441225]
[1764323140590,0.2,141.78,141.77,9.19809074]
[1764323140892,0.86,141.78,141.77,9.19809074]
[1764323141874,0.86,141.78,141.77,7.05367849]
[1764323143871,0.2,141.78,141.77,9.19809074]
[1764323144668,0.2,141.78,141.77,10.39903546]
[1764323144898,0.2,141.78,141.77,11.09903546]
[1764323146379,0.2,141.78,141.77,10.39903546]
[1764323146579,0.2,141.78,141.77,11.09903546]
[1764323146777,0.2,141.78,141.77,10.39903546]
[1764323146978,0.86,141.78,141.77,7.05367849]
[1764323148783,0.86,141.78,141.76,7.05400648]
[1764323148994,0.66,141.77,141.76,7.05400648]
[1764323150299,0.2,141.78,141.76,7.05400648]
[1764323150598,0.86,141.78,141.76,3.34535697]
[1764323150798,0.86,141.78,141.77,3.34535697]
[1764323152607,0.86,141.78,141.77,10.39903546]
[1764323156508,0.86,141.78,141.77,3.34535697]
[1764323156818,0.86,141.78,141.77,10.39903546]
[1764323160715,9.09426806,141.77,141.69,0.7]
[1764323161026,3.12,141.76,141.71,3.34535697]
[1764323161194,3.78,141.76,141.71,3.34535697]
[1764323161518,0.66,141.75,141.72,3.34535697]
[1764323162015,0.66,141.75,141.72,10.40147298]
[1764323163488,0.66,141.75,141.7,0.7]
[1764323163489,11.34446533,141.75,141.7,3.34535697]
[1764323163694,8.80994492,141.74,141.7,3.34535697]
[1764323163913,9.46994492,141.74,141.7,10.40219038]
[1764323164224,0.94432314,141.73,141.68,23.36679501]
[1764323164390,0.2,141.78,141.68,23.36679501]
[1764323164391,8.80994492,141.77,141.72,3.34535697]
[1764323164595,3.78,141.76,141.75,3.34535697]
[1764323164906,3.12,141.76,141.74,3.34535697]
[1764323165106,0.66,141.75,141.73,3.34535697]
[1764323165422,3.78,141.76,141.74,3.34535697]
[1764323165620,0.66,141.75,141.74,3.34535697]
[1764323165924,0.66,141.75,141.74,10.40052841]
[1764323170458,0.94432314,141.75,141.73,3.34535697]
[1764323170740,0.94432314,141.75,141.72,10.40135414]
[1764323170909,0.68,141.74,141.71,10.40189468]
[1764323174121,0.28432314,141.73,141.69,3.34535697]
[1764323174432,3.12,141.72,141.71,3.34535697]
[1764323174634,3.12,141.72,141.7,0.72]
[1764323174838,3.12,141.72,141.71,3.34535697]
[1764323175638,3.12,141.72,141.71,10.40202199]
[1764323177344,3.12,141.72,141.71,11.12202199]
[1764323178931,0.9,141.78,141.71,28.76368454]
[1764323179246,0.9,141.78,141.77,3.34535697]
[1764323179437,4.30432314,141.78,141.77,3.34535697]
[1764323179745,4.30432314,141.78,141.75,10.39990573]
[1764323179946,0.7,141.77,141.76,3.34535697]
[1764323180422,0.28432314,141.77,141.76,4.06535697]
[1764323180622,0.28432314,141.77,141.76,3.34535697]
[1764323181230,0.28432314,141.77,141.76,10.39953304]
[1764323183123,0.98432314,141.77,141.76,3.34535697]
[1764323183331,0.98432314,141.77,141.73,7.05566923]
[1764323183547,0.28432314,141.77,141.76,3.34535697]
[1764323183855,4.02,141.78,141.76,3.34535697]
[1764323184154,4.30432314,141.78,141.77,3.34535697]
[1764323184351,4.30432314,141.78,141.76,3.34535697]
[1764323185134,0.7,141.77,141.76,3.34535697]
[1764323185335,4.30432314,141.78,141.76,10.39953304]
[1764323186044,4.30432314,141.78,141.76,7.05417607]
[1764323186350,4.30432314,141.78,141.76,10.39953304]
[1764323186944,0.98432314,141.77,141.75,7.05453141]
[1764323187148,0.98432314,141.77,141.74,7.05501677]
[1764323187345,0.7,141.76,141.74,7.05501677]
[1764323187732,0.7,141.76,141.74,10.40037374]
[1764323189532,0.7,141.76,141.75,3.34535697]
[1764323190853,0.7,141.76,141.74,10.40034207]
[1764323191234,0.7,141.76,141.75,3.34535697]
[1764323192747,0.7,141.76,141.74,10.40034207]
[1764323195832,0.28432314,141.77,141.75,3.34535697]
[1764323196028,0.98432314,141.77,141.75,3.34535697]
[1764323196630,0.28432314,141.77,141.75,3.34535697]
[1764323196848,0.7,141.76,141.75,3.34535697]
[1764323197955,0.7,141.76,141.75,10.40003069]
[1764323200440,0.28432314,141.77,141.75,10.40003069]
[1764323200642,0.28432314,141.77,141.76,3.34535697]
[1764323201141,0.28432314,141.77,141.76,4.06535697]
[1764323202533,0.28432314,141.77,141.76,10.39953304]
[1764323204939,0.28432314,141.77,141.76,11.11953304]
[1764323205259,3.32,141.78,141.76,11.11953304]
[1764323205469,3.60432314,141.78,141.77,4.06535697]
[1764323206257,3.60432314,141.78,141.77,3.34535697]
[1764323206556,4.32432314,141.78,141.77,2.14133652]
[1764323206766,4.32432314,141.78,141.77,9.19501501]
[1764323209664,3.60432314,141.78,141.77,9.19501501]
[1764323210265,3.60432314,141.78,141.77,9.91501501]
[1764323211045,3.32,141.78,141.77,9.91501501]
[1764323214846,3.32,141.78,141.77,26.22387901]
[1764323220344,0.14216157,141.77,141.74,3.32]
[1764323220556,0.86216157,141.77,141.74,10.37493252]
[1764323220865,0.86216157,141.77,141.74,9.19626904]
[1764323221069,0.14216157,141.77,141.76,2.14133652]
[1764323221367,3.32,141.78,141.76,2.14133652]
[1764323221572,3.32,141.78,141.76,2.86133652]
[1764323221781,3.32,141.78,141.77,9.19501501]
[1764323222455,3.46216157,141.78,141.77,9.19501501]
[1764323223661,4.18216157,141.78,141.77,7.05367849]
[1764323224575,4.32432314,141.78,141.77,7.05367849]
[1764323225491,4.32432314,141.78,141.76,7.05397656]
[1764323225775,0.28432314,141.77,141.76,7.05397656]
[1764323226790,0.28432314,141.77,141.76,2.14133652]
[1764323227169,3.32,141.78,141.76,2.86133652]
[1764323227372,3.60432314,141.78,141.77,2.14133652]
[1764323228187,4.32432314,141.78,141.77,2.14133652]
[1764323228768,4.32432314,141.78,141.75,25.41015285]
[1764323229087,4.32432314,141.78,141.76,2.14133652]
[1764323229489,4.32432314,141.78,141.77,2.14133652]
[1764323231189,4.32432314,141.78,141.77,9.19501501]
[1764323234491,4.32432314,141.78,141.76,9.19526674]
[1764323234676,0.7,141.77,141.76,9.19526674]
[1764323234989,3.60432314,141.78,141.76,9.19526674]
[1764323235189,4.30432314,141.78,141.76,9.19526674]
[1764323235789,4.30432314,141.78,141.77,2.14133652]
[1764323236189,3.60432314,141.78,141.76,7.77393022]
[1764323236375,4.31432314,141.78,141.76,9.91526674]
[1764323236577,4.31432314,141.78,141.77,2.14133652]
[1764323236789,3.60432314,141.78,141.77,2.82133652]
[1764323237374,3.60432314,141.78,141.77,2.14133652]
[1764323237985,3.60432314,141.78,141.77,9.19501501]
[1764323238181,3.32,141.78,141.77,9.87501501]
[1764323247711,3.32,141.78,141.77,7.05367849]
[1764323248010,3.32,141.78,141.77,9.87501501]
[1764323250094,3.32,141.78,141.77,9.19501501]
[1764323250606,3.32,141.78,141.77,9.87501501]
[1764323251884,0.2,141.78,141.77,9.87501501]
[1764323253186,3.32,141.81,141.78,16.308864]
[1764323253388,3.32,141.81,141.8,18.45020052]
[1764323253593,0.2,141.81,141.8,18.45020052]
[1764323253787,0.2,141.81,141.8,19.13020052]
[1764323255214,0.2,141.81,141.8,26.18238669]
[1764323258609,0.2,141.83,141.8,45.95418865]
[1764323258816,0.2,141.83,141.82,4.28267304]
[1764323259306,0.2,141.83,141.82,4.96267304]
[1764323259701,0.2,141.83,141.82,12.01386469]
[1764323262717,0.2,141.83,141.82,14.837826]
[1764323262895,0.2,141.83,141.82,12.01386469]
[1764323263092,0.2,141.83,141.82,28.32272869]
[1764323263914,0.2,141.83,141.82,31.14669]
[1764323264302,0.2,141.83,141.82,28.32272869]
[1764323266637,0.2,141.83,141.82,30.72375711]
[1764323274705,1e-08,141.83,141.82,30.72375711]
[1764323274909,1e-08,141.84,141.83,0.71]
[1764323275118,1e-08,141.84,141.83,4.05185073]
[1764323276744,1e-08,141.84,141.83,11.10254522]
[1764323277934,1e-08,141.84,141.83,10.39254522]
[1764323278137,0.72000001,141.84,141.83,10.39254522]
[1764323280442,1e-08,141.84,141.83,10.39254522]
[1764323280939,0.72000001,141.84,141.83,10.39254522]
[1764323281318,1e-08,141.84,141.83,10.39254522]
[1764323281518,1e-08,141.84,141.83,11.10254522]
[1764323281946,1e-08,141.84,141.83,10.39254522]
[1764323282434,1e-08,141.84,141.83,11.10254522]
[1764323284440,0.92,141.87,141.83,61.34597262]
[1764323284619,0.72,141.86,141.83,76.23976718]
[1764323284819,0.72,141.86,141.85,3.34185073]
[1764323285440,0.72,141.86,141.85,10.39155111]
[1764323297038,4.12432314,141.86,141.85,10.39155111]
[1764323298746,0.28432314,141.85,141.84,7.0501974]
[1764323298949,13.09611879,141.85,141.8,3.34185073]
[1764323299153,17.22044193,141.85,141.77,17.6334918]
[1764323299470,0.28432314,141.82,141.8,3.34185073]
[1764323299632,3.40432314,141.81,141.8,3.34185073]
[1764323300053,4.06432314,141.81,141.8,3.34185073]
[1764323300254,4.06432314,141.81,141.8,10.3940369]
[1764323302047,18.2934918,141.84,141.8,11.0940369]
[1764323302257,21.03781494,141.84,141.83,3.34185073]
[1764323302753,4.06432314,141.84,141.83,3.34185073]
[1764323303962,0.28432314,141.83,141.82,7.05082439]
[1764323304155,0.94432314,141.83,141.82,10.39267512]
[1764323306956,0.94432314,141.83,141.82,3.34185073]
[1764323307555,0.94432314,141.83,141.81,3.34185073]
[1764323307746,0.66,141.82,141.81,3.34185073]
[1764323308545,0.66,141.82,141.77,0.7]
[1764323308745,0.66,141.82,141.79,3.34185073]
[1764323309067,0.66,141.82,141.79,10.39431909]
[1764323309268,0.66,141.82,141.8,3.34185073]
[1764323309569,3.40432314,141.81,141.8,3.34185073]
[1764323309875,3.12,141.81,141.8,3.34185073]
[1764323310046,3.12,141.81,141.8,4.04185073]
[1764323311456,3.12,141.81,141.8,11.0940369]
[1764323318559,3.12,141.81,141.8,10.3940369]
[1764323319268,3.12,141.81,141.8,11.0940369]
[1764323323172,3.83,141.81,141.8,10.3940369]
[1764323323364,3.12,141.81,141.8,10.3940369]
[1764323323969,3.12,141.81,141.8,7.05218617]
[1764323324272,3.12,141.81,141.79,7.052447]
[1764323324273,3.83,141.81,141.79,7.052447]
[1764323324575,3.40432314,141.81,141.8,3.34185073]
[1764323325057,4.11432314,141.81,141.8,10.3940369]
[1764323326575,4.11432314,141.81,141.8,3.34185073]
[1764323328577,4.11432314,141.81,141.8,2.14066342]
[1764323328758,3.40432314,141.81,141.8,2.14066342]
[1764323328966,3.12,141.81,141.8,2.14066342]
[1764323330988,3.12,141.81,141.8,9.19284959]
[1764323332881,3.12,141.81,141.8,9.84284959]
[1764323333875,3.12,141.81,141.8,9.19284959]
[1764323338003,3.12,141.81,141.8,9.84284959]
[1764323342773,3.12,141.84,141.8,27.47331503]
[1764323342974,3.12,141.84,141.83,18.44952742]
[1764323343469,3.32,141.87,141.83,19.09952742]
[1764323343674,4.03,141.87,141.86,2.14066342]
[1764323343874,4.31432314,141.87,141.86,2.14066342]
[1764323344096,4.31432314,141.87,141.86,9.18986686]
[1764323344303,3.60432314,141.87,141.86,9.18986686]
[1764323344835,4.31432314,141.87,141.86,9.18986686]
[1764323345102,4.17216157,141.87,141.86,9.18986686]
[1764323345298,4.31432314,141.87,141.86,9.18986686]
[1764323347575,3.32,141.87,141.86,9.18986686]
[1764323348386,2.32,141.87,141.86,9.18986686]
[1764323353373,2.99,141.87,141.86,9.18986686]
[1764323357286,2.32,141.87,141.86,9.18986686]
[1764323358708,3.27432314,141.87,141.86,9.18986686]
[1764323358911,0.28432314,141.86,141.85,9.19020439]
[1764323359090,0.95432314,141.86,141.85,9.19020439]
[1764323361810,0.28432314,141.86,141.85,9.91020439]
[1764323362011,0.95432314,141.86,141.85,9.19020439]
[1764323363694,0.28432314,141.86,141.85,9.19020439]
[1764323364818,0.95432314,141.86,141.85,9.19020439]
[1764323365116,0.28432314,141.86,141.85,9.19020439]
[1764323365312,2.32,141.87,141.85,9.91020439]
[1764323365493,2.60432314,141.87,141.86,2.14066342]
[1764323365693,3.27432314,141.87,141.86,2.14066342]
[1764323367910,3.27432314,141.87,141.86,9.18986686]
[1764323370918,3.27432314,141.87,141.86,2.14066342]
[1764323371725,3.27432314,141.87,141.86,9.18986686]
[1764323373598,2.60432314,141.87,141.86,9.90986686]
[1764323374523,2.32,141.87,141.86,9.90986686]
[1764323375028,2.32,141.87,141.86,26.21873086]
[1764323376828,0.14216157,141.89,141.86,43.84173946]
[1764323377016,3.97,141.9,141.88,2.14066342]
[1764323377327,4.25432314,141.9,141.89,2.14066342]
[1764323377515,3.58432314,141.9,141.89,2.14066342]
[1764323377712,4.25432314,141.9,141.89,9.18837643]
[1764323378112,3.58432314,141.9,141.89,9.18837643]
[1764323378315,3.3,141.9,141.89,9.90837643]
[1764323379630,3.97,141.9,141.89,9.18837643]
[1764323379831,3.3,141.9,141.89,9.18837643]
[1764323381021,3.44216157,141.9,141.89,9.18837643]
[1764323381228,3.44216157,141.9,141.86,2.14066342]
[1764323381229,9.09426806,141.89,141.86,2.14066342]
[1764323381528,9.09426806,141.89,141.83,40.98629472]
[1764323381529,9.75426806,141.89,141.83,40.98629472]
[1764323381717,0.66,141.88,141.86,2.14066342]
[1764323381914,0.66,141.88,141.86,9.18981257]
[1764323386612,0.28432314,141.86,141.85,7.04949014]
[1764323386812,3.38432314,141.86,141.85,9.19015356]
[1764323387014,4.04432314,141.86,141.85,9.19015356]
[1764323388441,3.38432314,141.86,141.85,9.19015356]
[1764323388615,3.38432314,141.86,141.85,10.39125969]
[1764323388815,4.04432314,141.86,141.85,3.34176955]
[1764323389210,4.04432314,141.86,141.85,10.39146993]
[1764323392463,4.04432314,141.86,141.84,10.39177653]
[1764323392660,0.66,141.85,141.84,10.39177653]
[1764323401652,0.66,141.85,141.84,3.34176955]
[1764323402360,0.66,141.85,141.84,10.39196695]
[1764323405654,4.04432314,141.86,141.84,10.39196695]
[1764323405964,12.85426806,141.86,141.85,3.34176955]
[1764323406267,12.19426806,141.86,141.85,3.34176955]
[1764323406766,12.85426806,141.86,141.85,3.34176955]
[1764323408566,12.85426806,141.86,141.85,10.39146993]
[1764323408741,3.38432314,141.86,141.85,10.39146993]
[1764323408946,4.04432314,141.86,141.85,10.39146993]
[1764323410706,4.04432314,141.86,141.84,3.34176955]
[1764323410873,0.67,141.85,141.83,10.39212098]
[1764323411246,0.67,141.85,141.83,10.39242667]
[1764323412470,0.67,141.85,141.82,10.3929612]
[1764323412669,0.67,141.85,141.82,11.0829612]
[1764323413060,0.67,141.85,141.83,3.34176955]
[1764323414677,0.67,141.85,141.83,10.39233078]
[1764323416778,0.67,141.85,141.83,3.34176955]
[1764323416965,0.67,141.85,141.82,10.3927918]
[1764323417161,0.67,141.85,141.82,7.05102225]
[1764323417362,0.67,141.85,141.82,10.3927918]
[1764323417561,0.67,141.85,141.82,11.1027918]
[1764323418975,0.67,141.85,141.77,4.05176955]
[1764323418976,3.62609269,141.83,141.77,4.05176955]
[1764323419184,0.28432314,141.8,141.78,3.34176955]
[1764323419362,3.38432314,141.79,141.78,0.71]
[1764323420053,3.38432314,141.79,141.78,7.76318098]
[1764323420676,3.38432314,141.79,141.78,11.10495053]
[1764323422786,0.28432314,141.78,141.77,7.05350397]
[1764323423480,0.28432314,141.78,141.77,7.76350397]
[1764323423954,0.28432314,141.78,141.77,11.10527352]
[1764323426752,3.1,141.8,141.77,28.73946975]
[1764323426956,3.1,141.8,141.79,3.34176955]
[1764323427172,3.24216157,141.8,141.79,3.34176955]
[1764323427478,3.38432314,141.8,141.79,4.05176955]
[1764323427679,3.38432314,141.8,141.79,3.34176955]
[1764323427991,3.38432314,141.8,141.79,4.05176955]
[1764323428357,3.38432314,141.8,141.79,3.34176955]
[1764323428654,19.65063355,141.83,141.79,28.73616195]
[1764323428977,0.71,141.83,141.82,3.34176955]
[1764323429283,9.66210649,141.82,141.79,7.76268354]
[1764323429491,0.99432314,141.82,141.8,3.34176955]
[1764323429790,0.85216157,141.82,141.8,3.34176955]
[1764323430585,0.14216157,141.82,141.81,3.34176955]
[1764323430758,0.14216157,141.82,141.81,10.39345842]
[1764323431367,3.81,141.83,141.81,10.39345842]
[1764323432378,0.14216157,141.82,141.81,10.39345842]
[1764323434086,0.28432314,141.82,141.81,10.39345842]
[1764323438883,0.99432314,141.82,141.81,10.39345842]
[1764323444473,0.28432314,141.82,141.81,11.07345842]
[1764323446680,0.96432314,141.82,141.81,3.34176955]
[1764323447087,0.28432314,141.82,141.81,3.34176955]
[1764323447286,0.28432314,141.82,141.81,10.39345842]
[1764323448693,0.28432314,141.82,141.81,9.19194892]
[1764323448899,0.28432314,141.82,141.81,9.87194892]
[1764323453204,3.1,141.83,141.81,9.87194892]
[1764323453510,3.1,141.83,141.82,2.82026005]
[1764323453511,3.38432314,141.83,141.82,2.82026005]
[1764323454008,3.38432314,141.83,141.82,2.14026005]
[1764323455112,3.38432314,141.83,141.82,9.8714517]
[1764323455295,3.1,141.83,141.82,9.8714517]
[1764323460814,3.1,141.83,141.82,18.4324919]
[1764323461109,3.1,141.88,141.82,36.06047102]
[1764323461411,0.28432314,141.87,141.83,0.68]
[1764323461799,3.1,141.88,141.83,0.68]
[1764323462000,3.78,141.88,141.83,0.68]
[1764323462202,0.14216157,141.87,141.83,0.68]
[1764323462491,0.28432314,141.87,141.86,2.14026005]
[1764323462884,0.28432314,141.87,141.86,9.18946349]
[1764323464691,0.28432314,141.87,141.86,9.86946349]
[1764323465209,0.28432314,141.87,141.86,9.18946349]
[1764323467000,0.28432314,141.87,141.86,9.86946349]
[1764323467200,0.28432314,141.87,141.86,9.18946349]
[1764323468788,3.1,141.88,141.86,9.86946349]
[1764323468989,3.38432314,141.88,141.87,2.14026005]
[1764323469497,3.1,141.88,141.87,2.82026005]
[1764323470916,3.1,141.88,141.87,9.18896661]
[1764323471215,0.2,141.9,141.87,27.47073301]
[1764323471390,0.2,141.9,141.89,2.14026005]
[1764323471813,0.2,141.9,141.89,2.80026005]
[1764323473093,0.2,141.9,141.89,9.84797306]
[1764323473611,0.2,141.9,141.89,9.18797306]
[1764323474209,0.2,141.9,141.89,9.85797306]
[1764323475901,0.2,141.9,141.89,11.99823311]
[1764323481022,0.48432314,141.9,141.89,7.04771301]
[1764323481221,0.28432314,141.88,141.87,2.14026005]
[1764323481636,9.77426806,141.88,141.87,2.14026005]
[1764323482709,9.77426806,141.88,141.87,9.18896661]
[1764323487331,9.77426806,141.88,141.87,2.14026005]
[1764323487725,20.32150246,141.88,141.87,2.14026005]
[1764323488128,12.87426806,141.88,141.87,2.14026005]
[1764323488932,12.87426806,141.88,141.86,2.14026005]
[1764323489135,0.68,141.87,141.86,2.14026005]
[1764323490032,0.68,141.87,141.86,9.18946349]